[Event "DFMMLV 2019"]
[Site "Braunfels"]
[Date "2019.06.21"]
[Round "3.39"]
[White "Alhassan, Jodi"]
[Black "Neumann, Tina"]
[Result "0-1"]
[ECO "B01"]
[WhiteElo "1108"]
[BlackElo "1525"]
[Annotator "NA"]
[PlyCount "110"]
[EventDate "2019.06.20"]
[EventType "team-tourn"]
[EventCountry "GER"]
[SourceTitle "playchess.com"]
[Source "ChessBase"]
[SourceQuality "1"]
[WhiteTeam "Saarland"]
[BlackTeam "Thueringen"]
[TimeControl "40/5400+30:1800+30"]

1. e4 {[%emt 0:00:00]} d5 {[%emt 0:00:14]} 2. exd5 {[%emt 0:00:00]} Qxd5 {[%emt 0:00:06]} 3. Nc3 {[%emt 0:00:00]} Qa5 {[%emt 0:00:03]} 4. d4 {[%emt 0:00:20]} Nf6 {[%emt 0:00:06]} 5. Bd2 {[%emt 0:05:22]} c6 {[%emt 0:00:13]} 6. Ne4 {[%emt 0:04:09]} Qc7 {[%emt 0:00:22]} 7. Nxf6+ {[%emt 0:00:54]} gxf6 {[%emt 0:00:18]} 8. Bc4 {[%emt 0:14:19]} Bf5 {[%emt 0:01:47]} 9. Nf3 {[%emt 0:08:25]} e6 {[%emt 0:05:49]} 10. O-O {[%emt 0:06:11]} Nd7 {[%emt 0:02:53]} 11. Nh4 {[%emt 0:06:36]} Bg6 {[%emt 0:00:59]} 12. c3 {[%emt 0:04:35]} O-O-O {[%emt 0:03:20]} 13. a4 {[%emt 0:04:57]} Bd6 {[%emt 0:03:22]} 14. h3 {[%emt 0:02:58]} Rdg8 {[%emt 0:05:06]} 15. b4 {[%emt 0:02:07]} Be4 {[%emt 0:30:07]} 16. Re1 {[%emt 0:04:13]} f5 {[%emt 0:07:51]} 17. b5 {[%emt 0:02:25]} Nf6 {[%emt 0:15:08]} 18. a5 {[%emt 0:11:46]} cxb5 {[%emt 0:06:04]} 19. Bxb5 {[%emt 0:00:22]} a6 {[%emt 0:02:50]} 20. Bf1 {[%emt 0:01:01]} Nd5 {[%emt 0:03:46]} 21. Ra4 {[%emt 0:01:13]} Kd8 {[%emt 0:04:30]} 22. Rc4 {[%emt 0:00:38]} Qxa5 {[%emt 0:01:43]} 23. Qh5 {[%emt 0:01:24]} b5 {[%emt 0:02:00]} 24. Rc6 {[%emt 0:03:43]} Kd7 {[%emt 0:01:52]} 25. Rxd6+ {[%emt 0:01:26]} Kxd6 {[%emt 0:00:08]} 26. Qxf7 {[%emt 0:01:21]} Qc7 {[%emt 0:01:20]} 27. Qxc7+ {[%emt 0:00:17]} Nxc7 {[%emt 0:00:03]} 28. Bf4+ {[%emt 0:00:21]} Kd7 {[%emt 0:00:45]} 29. Be5 {[%emt 0:00:07]} Bd5 {[%emt 0:00:41]} 30. Bxh8 {[%emt 0:00:19]} Rxh8 {[%emt 0:00:01]} 31. Rc1 {[%emt 0:01:32]} Rc8 {[%emt 0:00:49]} 32. g3 {[%emt 0:00:29]} Ne8 {[%emt 0:00:34]} 33. Ng2 {[%emt 0:00:32]} Bc4 {[%emt 0:00:45]} 34. Bxc4 {[%emt 0:00:41]} Rxc4 {[%emt 0:00:05]} 35. Ne3 {[%emt 0:00:20]} Rc6 {[%emt 0:01:00]} 36. c4 {[%emt 0:01:22]} bxc4 {[%emt 0:00:37]} 37. Nxc4 {[%emt 0:00:37]} Ke7 {[%emt 0:00:17]} 38. Rc2 {[%emt 0:00:35]} Nd6 {[%emt 0:00:22]} 39. Ne3 {[%emt 0:00:18]} Rxc2 {[%emt 0:00:40]} 40. Nxc2 {[%emt 0:00:07]} Kd7 {[%emt 0:00:34]} 41. Kf1 {[%emt 0:30:34]} Kc6 {[%emt 0:30:32]} 42. Ke1 {[%emt 0:00:08]} a5 {[%emt 0:00:00]} 43. Kd2 {[%emt 0:00:00]} Kd5 {[%emt 0:00:00]} 44. Kd3 {[%emt 0:00:00]} Ne4 {[%emt 0:00:00]} 45. Ne3+ {[%emt 0:00:00]} Kc6 {[%emt 0:00:00]} 46. Ke2 {[%emt 0:00:00]} Kb5 {[%emt 0:00:00]} 47. Kd3 {[%emt 0:00:00]} Nxf2+ {[%emt 0:00:00]} 48. Kc3 {[%emt 0:00:00]} Ne4+ {[%emt 0:00:00]} 49. Kb3 {[%emt 0:00:00]} Nxg3 {[%emt 0:00:00]} 50. Nc2 {[%emt 0:00:00]} a4+ {[%emt 0:00:00]} 51. Kc3 {[%emt 0:00:00]} Ne4+ {[%emt 0:00:00]} 52. Kb2 {[%emt 0:00:00]} Kc4 {[%emt 0:00:00]} 53. Ka3 {[%emt 0:00:00]} Kc3 {[%emt 0:00:00]} 54. Nb4 {[%emt 0:00:00]} Kxd4 {[%emt 0:00:00]} 55. Kxa4 {[%emt 0:00:00]} f4 0-1

[Event "DFMMLV 2019"]
[Site "Braunfels"]
[Date "2019.06.21"]
[Round "3.41"]
[White "Brandt, Carina"]
[Black "Zschischang, Marine"]
[Result "1-0"]
[ECO "C10"]
[WhiteElo "2085"]
[BlackElo "2060"]
[Annotator "NA"]
[PlyCount "125"]
[EventDate "2019.06.20"]
[EventType "team-tourn"]
[EventCountry "GER"]
[SourceTitle "playchess.com"]
[Source "ChessBase"]
[SourceQuality "1"]
[WhiteTeam "Hamburg"]
[BlackTeam "Niedersachsen Bremen"]
[TimeControl "40/5400+30:1800+30"]

1. e4 {[%emt 0:00:00]} e6 {[%emt 0:00:00]} 2. d4 {[%emt 0:00:00]} d5 {[%emt 0:00:00]} 3. Nc3 {[%emt 0:00:00]} dxe4 {[%emt 0:00:00]} 4. Nxe4 {[%emt 0:00:00]} Nd7 {[%emt 0:00:00]} 5. Nf3 {[%emt 0:00:02]} Ngf6 {[%emt 0:00:00]} 6. Bd3 {[%emt 0:00:09]} c5 {[%emt 0:00:00]} 7. Qe2 {[%emt 0:09:16]} Qc7 {[%emt 0:03:08]} 8. Nxf6+ {[%emt 0:06:14]} Nxf6 {[%emt 0:00:27]} 9. dxc5 {[%emt 0:01:27]} Bxc5 {[%emt 0:01:17]} 10. Bg5 {[%emt 0:03:37]} a6 {[%emt 0:08:25]} 11. O-O-O {[%emt 0:01:40]} Qb6 {[%emt 0:12:18]} 12. Ne5 {[%emt 0:06:23]} Bd4 {[%emt 0:12:30]} 13. Nc4 {[%emt 0:03:25]} Qc7 {[%emt 0:04:47]} 14. Be4 {[%emt 0:04:35]} Bc5 {[%emt 0:09:26]} 15. g3 {[%emt 0:11:07]} O-O {[%emt 0:04:34]} 16. Bxf6 {[%emt 0:05:27]} gxf6 {[%emt 0:00:44]} 17. f4 {[%emt 0:06:03]} Bd7 {[%emt 0:08:06]} 18. Bxh7+ {[%emt 0:02:29]} Kg7 {[%emt 0:04:44]} 19. Bd3 {[%emt 0:00:48]} Rfc8 {[%emt 0:03:10]} 20. Qg4+ {[%emt 0:06:09]} Kf8 {[%emt 0:00:55]} 21. Qh4 {[%emt 0:00:48]} Bb5 {[%emt 0:10:28]} 22. Kb1 {[%emt 0:03:05]} Bd4 {[%emt 0:01:03]} 23. f5 {[%emt 0:02:24]} e5 {[%emt 0:03:43]} 24. Na3 {[%emt 0:03:22]} Bc6 {[%emt 0:08:31]} 25. Rhe1 {[%emt 0:02:11]} Bf3 {[%emt 0:00:39]} 26. Qxf6 {[%emt 0:10:30]} Bxd1 {[%emt 0:00:28]} 27. Rxd1 {[%emt 0:00:19]} Qb6 {[%emt 0:02:24]} 28. Qxb6 {[%emt 0:02:14]} Bxb6 {[%emt 0:00:01]} 29. Nc4 {[%emt 0:01:07]} Bc7 {[%emt 0:00:01]} 30. Be4 {[%emt 0:00:10]} Rd8 {[%emt 0:00:20]} 31. Re1 {[%emt 0:02:47]} Ra7 {[%emt 0:00:32]} 32. Ne3 {[%emt 0:01:59]} Rd2 {[%emt 0:01:00]} 33. h4 {[%emt 0:00:12]} b5 {[%emt 0:00:47]} 34. Kc1 {[%emt 0:00:21]} Rd6 {[%emt 0:00:39]} 35. Nd5 {[%emt 0:02:12]} Bd8 {[%emt 0:00:05]} 36. c3 {[%emt 0:01:41]} Rad7 {[%emt 0:00:40]} 37. Rd1 {[%emt 0:00:01]} f6 {[%emt 0:00:17]} 38. Kc2 {[%emt 0:00:24]} Rg7 {[%emt 0:00:08]} 39. Rg1 {[%emt 0:02:04]} Rgd7 {[%emt 0:01:03]} 40. Rd1 {[%emt 0:00:11]} Bb6 {[%emt 0:00:45]} 41. g4 {[%emt 0:08:44]} Bf2 {[%emt 0:02:54]} 42. g5 {[%emt 0:05:06]} Bxh4 {[%emt 0:01:25]} 43. g6 {[%emt 0:00:06]} Bg5 {[%emt 0:01:16]} 44. b3 {[%emt 0:01:00]} a5 {[%emt 0:13:34]} 45. c4 {[%emt 0:01:18]} bxc4 {[%emt 0:06:38]} 46. bxc4 {[%emt 0:00:06]} Rc6 {[%emt 0:00:35]} 47. Kc3 {[%emt 0:00:36]} Kg7 {[%emt 0:05:18]} 48. Rh1 {[%emt 0:01:13]} Bh6 {[%emt 0:00:15]} 49. Rh2 {[%emt 0:02:31]} Rc5 {[%emt 0:01:21]} 50. Rb2 {[%emt 0:06:53]} Bg5 {[%emt 0:00:20]} 51. Rb8 {[%emt 0:02:00]} Bd2+ {[%emt 0:01:45]} 52. Kxd2 {[%emt 0:01:58]} Rxc4 {[%emt 0:00:02]} 53. Ke3 {[%emt 0:00:09]} Ra4 {[%emt 0:00:25]} 54. Rg8+ {[%emt 0:01:44]} Kh6 {[%emt 0:00:54]} 55. Rh8+ {[%emt 0:00:44]} Kg5 {[%emt 0:00:01]} 56. Rh5+ {[%emt 0:00:10]} Kxh5 {[%emt 0:00:06]} 57. Nxf6+ {[%emt 0:00:06]} Kh6 {[%emt 0:00:17]} 58. Nxd7 {[%emt 0:00:19]} Ra3+ {[%emt 0:00:02]} 59. Bd3 {[%emt 0:00:17]} Rxa2 {[%emt 0:00:08]} 60. f6 {[%emt 0:00:30]} e4 {[%emt 0:01:56]} 61. Bxe4 {[%emt 0:00:24]} Ra1 {[%emt 0:00:06]} 62. f7 {[%emt 0:00:22]} Rf1 {[%emt 0:00:51]} 63. Bf3 {[%emt 0:00:10]} 1-0

[Event "DFMMLV 2019"]
[Site "Braunfels"]
[Date "2019.06.21"]
[Round "3.42"]
[White "Moenster, Madita"]
[Black "Wulf, Constanze"]
[Result "0-1"]
[ECO "B90"]
[WhiteElo "1994"]
[BlackElo "1711"]
[Annotator "NA"]
[PlyCount "134"]
[EventDate "2019.06.20"]
[EventType "team-tourn"]
[EventCountry "GER"]
[SourceTitle "playchess.com"]
[Source "ChessBase"]
[SourceQuality "1"]
[WhiteTeam "Niedersachsen Bremen"]
[BlackTeam "Hamburg"]
[TimeControl "40/5400+30:1800+30"]

1. e4 {[%emt 0:00:00]} c5 {[%emt 0:00:00]} 2. Nf3 {[%emt 0:00:00]} d6 {[%emt 0:00:00]} 3. d4 {[%emt 0:00:00]} cxd4 {[%emt 0:00:00]} 4. Nxd4 {[%emt 0:00:00]} Nf6 {[%emt 0:00:00]} 5. Nc3 {[%emt 0:00:03]} a6 {[%emt 0:00:00]} 6. f3 {[%emt 0:00:14]} e5 {[%emt 0:00:00]} 7. Nb3 {[%emt 0:00:07]} Be6 {[%emt 0:00:12]} 8. Be3 {[%emt 0:00:12]} Be7 {[%emt 0:00:04]} 9. Qd2 {[%emt 0:00:08]} Nbd7 {[%emt 0:00:09]} 10. O-O-O {[%emt 0:01:47]} b5 {[%emt 0:00:21]} 11. g4 {[%emt 0:01:42]} Nb6 {[%emt 0:00:31]} 12. g5 {[%emt 0:09:27]} Nfd7 {[%emt 0:04:55]} 13. Kb1 {[%emt 0:06:22]} Qc7 {[%emt 0:09:32]} 14. Nd5 {[%emt 0:11:25]} Bxd5 {[%emt 0:07:37]} 15. exd5 {[%emt 0:02:04]} O-O {[%emt 0:10:03]} 16. h4 {[%emt 0:05:16]} Nc4 {[%emt 0:02:29]} 17. Bxc4 {[%emt 0:03:00]} bxc4 {[%emt 0:00:14]} 18. Na5 {[%emt 0:02:02]} Rfc8 {[%emt 0:03:40]} 19. Nc6 {[%emt 0:04:23]} Bf8 {[%emt 0:00:14]} 20. h5 {[%emt 0:00:46]} Nb8 {[%emt 0:04:00]} 21. Nxb8 {[%emt 0:05:38]} c3 {[%emt 0:07:53]} 22. Qd3 {[%emt 0:01:46]} Rcxb8 {[%emt 0:05:15]} 23. b3 {[%emt 0:07:20]} a5 {[%emt 0:06:42]} 24. Rh4 {[%emt 0:06:29]} Rb4 {[%emt 0:05:44]} 25. Rdh1 {[%emt 0:03:25]} Rab8 {[%emt 0:09:44]} 26. g6 {[%emt 0:02:15]} fxg6 {[%emt 0:01:25]} 27. hxg6 {[%emt 0:00:27]} h6 {[%emt 0:00:15]} 28. R4h2 {[%emt 0:04:42]} Qb7 {[%emt 0:05:53]} 29. Rd1 {[%emt 0:05:49]} Rc8 {[%emt 0:07:05]} 30. Qf5 {[%emt 0:11:42]} Re8 {[%emt 0:03:27]} 31. Ka1 {[%emt 0:02:33]} Rb5 {[%emt 0:02:25]} 32. Qe4 {[%emt 0:00:35]} Qd7 {[%emt 0:01:13]} 33. Rdh1 {[%emt 0:01:39]} Qb7 {[%emt 0:02:42]} 34. Rd1 {[%emt 0:00:50]} Rb4 {[%emt 0:00:16]} 35. Qd3 {[%emt 0:00:27]} Qc8 {[%emt 0:00:38]} 36. Rdh1 {[%emt 0:00:58]} e4 {[%emt 0:00:55]} 37. fxe4 {[%emt 0:01:55]} Rbxe4 {[%emt 0:00:07]} 38. Rh3 {[%emt 0:00:23]} Qc7 {[%emt 0:02:18]} 39. Rf1 {[%emt 0:00:50]} Qe7 {[%emt 0:00:46]} 40. Bc1 {[%emt 0:00:47]} Re1 {[%emt 0:00:35]} 41. Qf3 {[%emt 0:02:30]} Qf6 {[%emt 0:12:55]} 42. Qxf6 {[%emt 0:04:39]} gxf6 {[%emt 0:00:07]} 43. Rhh1 {[%emt 0:01:30]} Rxf1 {[%emt 0:00:49]} 44. Rxf1 {[%emt 0:00:07]} Kg7 {[%emt 0:03:42]} 45. Rf3 {[%emt 0:01:43]} Re5 {[%emt 0:01:22]} 46. Rxc3 {[%emt 0:01:02]} Rxd5 {[%emt 0:00:13]} 47. Rc8 {[%emt 0:03:01]} h5 {[%emt 0:01:30]} 48. c4 {[%emt 0:01:38]} Re5 {[%emt 0:00:37]} 49. Bf4 {[%emt 0:04:51]} Re4 {[%emt 0:01:27]} 50. Bd2 {[%emt 0:01:30]} Be7 {[%emt 0:00:21]} 51. Bxa5 {[%emt 0:01:41]} Kxg6 52. b4 {[%emt 0:03:00]} f5 {[%emt 0:00:49]} 53. b5 {[%emt 0:01:22]} Bf6+ {[%emt 0:01:23]} 54. Kb1 {[%emt 0:00:09]} f4 {[%emt 0:00:11]} 55. Kc2 {[%emt 0:06:34]} f3 {[%emt 0:02:05]} 56. Rg8+ {[%emt 0:01:27]} Kf5 {[%emt 0:01:30]} 57. Rg1 {[%emt 0:00:08]} Rxc4+ {[%emt 0:01:29]} 58. Kb3 {[%emt 0:00:36]} Rc8 {[%emt 0:00:24]} 59. a4 {[%emt 0:00:35]} Bd4 {[%emt 0:00:38]} 60. Rf1 {[%emt 0:00:22]} Kg4 {[%emt 0:00:45]} 61. Bb4 {[%emt 0:01:12]} Kg3 {[%emt 0:03:37]} 62. Bxd6+ {[%emt 0:01:21]} Kg2 {[%emt 0:00:09]} 63. Rd1 {[%emt 0:00:31]} Bb6 {[%emt 0:00:39]} 64. Kb4 {[%emt 0:00:30]} Ra8 {[%emt 0:00:42]} 65. Ra1 {[%emt 0:00:23]} f2 {[%emt 0:01:06]} 66. Bc5 {[%emt 0:00:38]} Ba5+ {[%emt 0:00:16]} 67. Kc4 {[%emt 0:00:20]} f1=Q+ {[%emt 0:00:09]} 0-1

[Event "DFMMLV 2019"]
[Site "Braunfels"]
[Date "2019.06.21"]
[Round "3.43"]
[White "Tobianski, Karina"]
[Black "Aden, Dagmar"]
[Result "1/2-1/2"]
[ECO "B22"]
[WhiteElo "1680"]
[BlackElo "1855"]
[Annotator "NA"]
[PlyCount "63"]
[EventDate "2019.06.20"]
[EventType "team-tourn"]
[EventCountry "GER"]
[SourceTitle "playchess.com"]
[Source "ChessBase"]
[SourceQuality "1"]
[WhiteTeam "Hamburg"]
[BlackTeam "Niedersachsen Bremen"]
[TimeControl "40/5400+30:1800+30"]

1. e4 {[%emt 0:00:00]} c5 {[%emt 0:00:00]} 2. c3 {[%emt 0:00:00]} Nf6 {[%emt 0:00:00]} 3. e5 {[%emt 0:00:00]} Nd5 {[%emt 0:00:04]} 4. d4 {[%emt 0:00:00]} cxd4 {[%emt 0:00:14]} 5. cxd4 {[%emt 0:00:00]} e6 {[%emt 0:00:37]} 6. Nf3 {[%emt 0:00:13]} Nc6 {[%emt 0:01:50]} 7. a3 {[%emt 0:00:13]} a5 {[%emt 0:03:06]} 8. Bd3 {[%emt 0:01:45]} d6 {[%emt 0:04:59]} 9. O-O {[%emt 0:00:57]} dxe5 {[%emt 0:02:34]} 10. dxe5 {[%emt 0:00:38]} Qc7 {[%emt 0:02:10]} 11. Re1 {[%emt 0:01:30]} g6 {[%emt 0:02:25]} 12. Qe2 {[%emt 0:05:59]} Bg7 {[%emt 0:04:10]} 13. Bd2 {[%emt 0:07:14]} Bd7 {[%emt 0:03:09]} 14. Nc3 {[%emt 0:02:11]} Nxc3 {[%emt 0:01:09]} 15. Bxc3 {[%emt 0:00:19]} O-O {[%emt 0:05:00]} 16. Rac1 {[%emt 0:05:54]} Qb8 {[%emt 0:07:45]} 17. h4 {[%emt 0:02:46]} Ne7 {[%emt 0:07:14]} 18. h5 {[%emt 0:24:42]} Bc6 {[%emt 0:08:23]} 19. hxg6 {[%emt 0:03:25]} hxg6 {[%emt 0:01:24]} 20. Ng5 {[%emt 0:05:40]} Rd8 {[%emt 0:11:41]} 21. Bc4 {[%emt 0:12:33]} Bd5 {[%emt 0:04:38]} 22. Bxd5 {[%emt 0:06:12]} Nxd5 {[%emt 0:00:45]} 23. Qf3 {[%emt 0:00:48]} Rd7 {[%emt 0:01:18]} 24. Rcd1 {[%emt 0:02:40]} Qe8 {[%emt 0:03:08]} 25. Ne4 {[%emt 0:01:46]} Nxc3 {[%emt 0:04:50]} 26. Qxc3 {[%emt 0:00:17]} Rxd1 {[%emt 0:03:47]} 27. Rxd1 {[%emt 0:00:07]} Rd8 {[%emt 0:01:01]} 28. Rxd8 {[%emt 0:06:06]} Qxd8 {[%emt 0:00:09]} 29. Nf6+ {[%emt 0:01:26]} Bxf6 {[%emt 0:01:18]} 30. exf6 {[%emt 0:00:05]} Qd1+ {[%emt 0:01:01]} 31. Kh2 Qh5+ 32. Kg1 {[%emt 0:04:53]} 1/2-1/2

[Event "DFMMLV 2019"]
[Site "Braunfels"]
[Date "2019.06.21"]
[Round "3.44"]
[White "Wollscheid, Stefanie"]
[Black "Neumann, Ramona"]
[Result "1/2-1/2"]
[ECO "C02"]
[WhiteElo "1705"]
[BlackElo "1709"]
[Annotator "NA"]
[PlyCount "112"]
[EventDate "2019.06.20"]
[EventType "team-tourn"]
[EventCountry "GER"]
[SourceTitle "playchess.com"]
[Source "ChessBase"]
[SourceQuality "1"]
[WhiteTeam "Niedersachsen Bremen"]
[BlackTeam "Hamburg"]
[TimeControl "40/5400+30:1800+30"]

1. e4 {[%emt 0:00:00]} e6 {[%emt 0:00:00]} 2. d4 {[%emt 0:00:00]} d5 {[%emt 0:00:00]} 3. e5 {[%emt 0:00:04]} c5 {[%emt 0:00:04]} 4. c3 {[%emt 0:00:30]} Nc6 {[%emt 0:00:20]} 5. Nf3 {[%emt 0:00:21]} Qb6 {[%emt 0:01:59]} 6. Be2 {[%emt 0:02:02]} Nge7 {[%emt 0:05:18]} 7. b3 {[%emt 0:08:25]} Nf5 {[%emt 0:02:57]} 8. Bb2 {[%emt 0:05:22]} cxd4 {[%emt 0:03:30]} 9. cxd4 {[%emt 0:04:03]} Bb4+ {[%emt 0:00:57]} 10. Kf1 {[%emt 0:04:19]} Bd7 {[%emt 0:03:37]} 11. a4 {[%emt 0:01:16]} a6 {[%emt 0:06:04]} 12. g4 {[%emt 0:13:07]} Nfe7 {[%emt 0:04:06]} 13. Bd3 {[%emt 0:01:45]} Ba5 {[%emt 0:08:24]} 14. Na3 {[%emt 0:07:49]} Nb4 {[%emt 0:04:45]} 15. Rc1 {[%emt 0:03:18]} Nxd3 {[%emt 0:01:48]} 16. Qxd3 {[%emt 0:00:23]} Nc6 {[%emt 0:12:53]} 17. Qe3 {[%emt 0:06:38]} Qd8 {[%emt 0:07:24]} 18. Nc2 {[%emt 0:04:17]} O-O {[%emt 0:08:01]} 19. Rg1 {[%emt 0:01:46]} f6 {[%emt 0:05:19]} 20. g5 {[%emt 0:13:28]} fxe5 {[%emt 0:01:59]} 21. Nxe5 Nxe5 {[%emt 0:01:44]} 22. dxe5 {[%emt 0:01:17]} b5 {[%emt 0:02:34]} 23. Rg4 {[%emt 0:02:25]} Be8 {[%emt 0:03:58]} 24. Nd4 {[%emt 0:01:57]} Bb6 {[%emt 0:05:23]} 25. Qh3 {[%emt 0:00:37]} Bg6 {[%emt 0:00:39]} 26. Rg3 {[%emt 0:06:26]} Bxd4 {[%emt 0:02:20]} 27. Bxd4 {[%emt 0:00:06]} Qd7 {[%emt 0:00:50]} 28. a5 {[%emt 0:00:41]} Rf4 {[%emt 0:02:28]} 29. Bb6 {[%emt 0:04:05]} Bf5 {[%emt 0:00:39]} 30. Qg2 {[%emt 0:01:16]} Rc8 {[%emt 0:00:56]} 31. Rgc3 {[%emt 0:00:26]} Rxc3 {[%emt 0:02:13]} 32. Rxc3 {[%emt 0:00:01]} Be4 {[%emt 0:00:19]} 33. Qg3 {[%emt 0:01:43]} Rf8 {[%emt 0:00:36]} 34. Rc7 {[%emt 0:01:33]} Qe8 {[%emt 0:00:23]} 35. Qc3 {[%emt 0:02:13]} Qh5 {[%emt 0:00:36]} 36. Ke1 {[%emt 0:02:41]} Qxh2 {[%emt 0:00:42]} 37. Kd2 {[%emt 0:00:25]} Qh5 {[%emt 0:01:51]} 38. Be3 {[%emt 0:00:21]} Qh2 {[%emt 0:00:52]} 39. Rc8 {[%emt 0:00:16]} h6 {[%emt 0:00:25]} 40. Rxf8+ {[%emt 0:00:42]} Kxf8 {[%emt 0:00:01]} 41. Qc8+ {[%emt 0:30:36]} Kf7 {[%emt 0:30:11]} 42. Qd7+ {[%emt 0:00:22]} Kf8 {[%emt 0:01:16]} 43. Qxe6 {[%emt 0:00:00]} d4 {[%emt 0:00:00]} 44. Qd6+ {[%emt 0:00:00]} Kg8 {[%emt 0:00:00]} 45. Qxd4 {[%emt 0:00:00]} Bf5 {[%emt 0:00:00]} 46. gxh6 {[%emt 0:00:00]} gxh6 {[%emt 0:00:00]} 47. Qd8+ {[%emt 0:00:00]} Kh7 {[%emt 0:00:00]} 48. e6 {[%emt 0:00:00]} Qe5 {[%emt 0:00:00]} 49. Qe7+ {[%emt 0:00:00]} Qg7 {[%emt 0:00:00]} 50. Qxg7+ {[%emt 0:00:00]} Kxg7 {[%emt 0:00:00]} 51. e7 {[%emt 0:00:00]} Kf7 {[%emt 0:00:00]} 52. Bxh6 {[%emt 0:00:00]} Kxe7 {[%emt 0:00:00]} 53. Ke3 {[%emt 0:00:00]} Ke6 {[%emt 0:00:00]} 54. Kd4 {[%emt 0:00:00]} Kd6 {[%emt 0:00:00]} 55. b4 {[%emt 0:00:00]} Bc8 {[%emt 0:00:00]} 56. f4 {[%emt 0:00:00]} Ke6 {[%emt 0:00:00]} 1/2-1/2

[Event "DFMMLV 2019"]
[Site "Braunfels"]
[Date "2019.06.21"]
[Round "3.45"]
[White "Hoefner, Nina"]
[Black "Grabowski, Petra"]
[Result "1-0"]
[ECO "C10"]
[WhiteElo "1557"]
[BlackElo "1626"]
[Annotator "NA"]
[PlyCount "63"]
[EventDate "2019.06.20"]
[EventType "team-tourn"]
[EventCountry "GER"]
[SourceTitle "playchess.com"]
[Source "ChessBase"]
[SourceQuality "1"]
[WhiteTeam "Hamburg"]
[BlackTeam "Niedersachsen Bremen"]
[TimeControl "40/5400+30:1800+30"]

1. e4 {[%emt 0:00:00]} e6 {[%emt 0:00:00]} 2. d4 {[%emt 0:00:00]} d5 {[%emt 0:00:00]} 3. Nc3 {[%emt 0:00:00]} dxe4 {[%emt 0:00:03]} 4. Nxe4 {[%emt 0:00:10]} Nd7 {[%emt 0:00:11]} 5. Nf3 {[%emt 0:00:42]} Ngf6 {[%emt 0:00:16]} 6. Bg5 {[%emt 0:01:01]} Be7 {[%emt 0:00:15]} 7. Nxf6+ {[%emt 0:00:18]} Nxf6 {[%emt 0:01:53]} 8. Bd3 {[%emt 0:01:52]} O-O {[%emt 0:04:54]} 9. c3 {[%emt 0:00:07]} c5 {[%emt 0:01:46]} 10. dxc5 {[%emt 0:04:11]} Bxc5 {[%emt 0:00:09]} 11. Qc2 {[%emt 0:00:41]} h6 {[%emt 0:02:15]} 12. Bh4 {[%emt 0:00:56]} a6 {[%emt 0:06:09]} 13. O-O-O {[%emt 0:00:26]} Qe7 {[%emt 0:14:18]} 14. Ne5 {[%emt 0:00:27]} g5 {[%emt 0:18:13]} 15. Bg3 {[%emt 0:00:11]} Nd7 {[%emt 0:04:46]} 16. h4 {[%emt 0:05:35]} Nxe5 {[%emt 0:09:23]} 17. Bxe5 {[%emt 0:00:10]} f6 {[%emt 0:03:25]} 18. Bg3 {[%emt 0:01:36]} Rf7 {[%emt 0:06:29]} 19. hxg5 {[%emt 0:00:49]} hxg5 {[%emt 0:00:15]} 20. Rh6 {[%emt 0:02:17]} Rg7 {[%emt 0:08:18]} 21. Rdh1 {[%emt 0:01:15]} Kf8 {[%emt 0:01:48]} 22. Rh8+ {[%emt 0:00:56]} Rg8 {[%emt 0:03:58]} 23. Rxg8+ {[%emt 0:06:33]} Kxg8 {[%emt 0:00:02]} 24. Bh7+ {[%emt 0:00:32]} Kf8 {[%emt 0:01:24]} 25. Bg6 {[%emt 0:03:44]} f5 {[%emt 0:04:35]} 26. Be5 {[%emt 0:02:12]} Be3+ {[%emt 0:07:09]} 27. fxe3 {[%emt 0:00:48]} Qc5 {[%emt 0:00:01]} 28. Rh8+ {[%emt 0:00:45]} Ke7 {[%emt 0:00:01]} 29. Rh7+ {[%emt 0:02:01]} Kf8 {[%emt 0:01:05]} 30. Qd3 {[%emt 0:03:55]} Qa5 {[%emt 0:01:18]} 31. Rh8+ {[%emt 0:00:20]} Ke7 {[%emt 0:00:05]} 32. Re8# 1-0

[Event "DFMMLV 2019"]
[Site "Braunfels"]
[Date "2019.06.21"]
[Round "3.46"]
[White "Wenke, Andrea"]
[Black "Harder, Daniella"]
[Result "0-1"]
[ECO "B13"]
[WhiteElo "1756"]
[BlackElo "1630"]
[Annotator "NA"]
[PlyCount "108"]
[EventDate "2019.06.20"]
[EventType "team-tourn"]
[EventCountry "GER"]
[SourceTitle "playchess.com"]
[Source "ChessBase"]
[SourceQuality "1"]
[WhiteTeam "Niedersachsen Bremen"]
[BlackTeam "Hamburg"]
[TimeControl "40/5400+30:1800+30"]

1. e4 {[%emt 0:00:00]} c6 {[%emt 0:00:00]} 2. d4 {[%emt 0:00:00]} d5 {[%emt 0:00:00]} 3. exd5 {[%emt 0:00:00]} cxd5 {[%emt 0:00:00]} 4. Nf3 {[%emt 0:00:33]} Bg4 {[%emt 0:01:39]} 5. Be2 {[%emt 0:01:43]} e6 {[%emt 0:00:26]} 6. Ne5 {[%emt 0:01:12]} Bxe2 {[%emt 0:00:50]} 7. Qxe2 {[%emt 0:00:14]} a6 {[%emt 0:11:12]} 8. Qf3 {[%emt 0:01:45]} Qf6 {[%emt 0:01:54]} 9. Qc3 {[%emt 0:03:27]} Qd8 {[%emt 0:03:47]} 10. O-O {[%emt 0:02:25]} Bd6 {[%emt 0:08:33]} 11. Nf3 {[%emt 0:05:35]} Ne7 {[%emt 0:03:49]} 12. Ng5 {[%emt 0:02:10]} Qc7 {[%emt 0:06:15]} 13. Qxc7 {[%emt 0:02:29]} Bxc7 {[%emt 0:00:06]} 14. c3 {[%emt 0:00:12]} O-O {[%emt 0:02:19]} 15. Nd2 {[%emt 0:01:07]} Ng6 {[%emt 0:03:17]} 16. g3 {[%emt 0:01:22]} Nc6 {[%emt 0:02:19]} 17. f4 {[%emt 0:01:56]} Nce7 {[%emt 0:05:42]} 18. Ndf3 {[%emt 0:01:23]} h5 {[%emt 0:07:41]} 19. h4 {[%emt 0:01:53]} Nf5 {[%emt 0:01:02]} 20. Kg2 {[%emt 0:00:22]} Rae8 {[%emt 0:00:35]} 21. Re1 {[%emt 0:00:56]} Re7 {[%emt 0:01:05]} 22. a4 {[%emt 0:03:50]} Rfe8 {[%emt 0:03:02]} 23. Ne5 {[%emt 0:05:47]} Bxe5 {[%emt 0:02:16]} 24. fxe5 {[%emt 0:00:24]} f6 {[%emt 0:01:13]} 25. Nf3 {[%emt 0:02:47]} Kh7 {[%emt 0:02:49]} 26. Bd2 {[%emt 0:01:26]} Rg8 {[%emt 0:01:43]} 27. Ra3 {[%emt 0:02:12]} Nh6 {[%emt 0:04:43]} 28. Rb3 {[%emt 0:03:26]} Nf7 {[%emt 0:01:03]} 29. exf6 {[%emt 0:03:24]} gxf6 {[%emt 0:00:23]} 30. Rb6 {[%emt 0:00:19]} Nd8 {[%emt 0:01:25]} 31. b4 {[%emt 0:02:27]} Rc7 {[%emt 0:06:49]} 32. Rd6 {[%emt 0:02:12]} Kg7 {[%emt 0:03:12]} 33. Rc1 {[%emt 0:02:38]} Kf7 {[%emt 0:00:27]} 34. a5 {[%emt 0:01:20]} Nc6 {[%emt 0:00:34]} 35. Re1 {[%emt 0:00:57]} Nf8 {[%emt 0:01:04]} 36. Bf4 {[%emt 0:01:12]} Ne7 {[%emt 0:04:34]} 37. Bd2 {[%emt 0:03:15]} Nf5 {[%emt 0:01:15]} 38. Rb6 {[%emt 0:07:13]} Nxg3 {[%emt 0:00:06]} 39. Kf2 {[%emt 0:00:18]} Ne4+ {[%emt 0:00:44]} 40. Ke3 {[%emt 0:02:03]} Nd7 {[%emt 0:00:32]} 41. Rg1 {[%emt 0:30:48]} Rxg1 {[%emt 0:31:28]} 42. Nxg1 {[%emt 0:00:06]} Nxb6 {[%emt 0:00:08]} 43. axb6 {[%emt 0:00:18]} Rc6 {[%emt 0:00:18]} 44. Kd3 {[%emt 0:00:41]} Nxd2 {[%emt 0:01:54]} 45. Kxd2 {[%emt 0:00:07]} Rxb6 {[%emt 0:00:09]} 46. Ne2 {[%emt 0:00:21]} a5 {[%emt 0:00:13]} 47. bxa5 {[%emt 0:00:45]} Rb2+ {[%emt 0:02:31]} 48. Kd3 {[%emt 0:01:05]} e5 {[%emt 0:05:34]} 49. dxe5 {[%emt 0:01:23]} fxe5 {[%emt 0:00:10]} 50. Ng3 {[%emt 0:02:11]} Kg6 {[%emt 0:00:00]} 51. Ne2 {[%emt 0:00:00]} Ra2 {[%emt 0:00:00]} 52. c4 {[%emt 0:00:00]} dxc4+ {[%emt 0:00:00]} 53. Ke3 {[%emt 0:00:00]} Rxe2+ {[%emt 0:00:00]} 54. Kxe2 {[%emt 0:00:00]} Kf5 {[%emt 0:00:00]} 0-1